bitfinex/quotes_BTCUSD_20241004
["timestamp","ask_amount","ask_price","bid_price","bid_amount"]
[1728018025227,0.26847646,61134.0,61133.0,0.0847495]
[1728018025446,0.28572544,61134.0,61133.0,0.0847495]
[1728018025887,0.28172544,61134.0,61133.0,0.0847495]
[1728018026098,0.28372544,61134.0,61133.0,0.0847495]
[1728018026341,0.28572544,61134.0,61133.0,0.0847495]
[1728018026562,0.28572734,61134.0,61133.0,0.0847495]
[1728018027666,0.28572726,61134.0,61133.0,0.0847495]
[1728018028808,0.28572756,61134.0,61133.0,0.0847495]
[1728018030160,0.26008246,61134.0,61133.0,0.0847495]
[1728018030420,0.24283326,61134.0,61133.0,0.0847495]
[1728018030623,0.26008323,61134.0,61133.0,0.0847495]
[1728018032833,0.26008323,61134.0,61133.0,0.0042495]
[1728018033064,0.30916474,61134.0,61133.0,0.0042495]
[1728018033290,0.18646097,61134.0,61133.0,0.000819]
[1728018033533,0.19085777,61134.0,61133.0,0.000819]
[1728018033761,0.33081026,61134.0,61133.0,0.000819]
[1728018033991,0.41097881,61134.0,61133.0,0.000819]
[1728018034662,0.267211,61134.0,61133.0,0.000819]
[1728018035545,0.265211,61134.0,61133.0,0.000819]
[1728018035978,0.280211,61134.0,61133.0,0.002819]
[1728018036473,0.280211,61134.0,61133.0,0.001819]
[1728018036690,0.265211,61134.0,61133.0,0.000819]
[1728018036909,0.265211,61134.0,61133.0,0.001819]
[1728018037129,0.274211,61134.0,61133.0,0.001819]
[1728018037358,0.39968703,61134.0,61133.0,0.001819]
[1728018037573,0.43433509,61134.0,61133.0,0.002819]
[1728018040016,0.47453509,61134.0,61133.0,0.002819]
[1728018040232,0.45088703,61134.0,61133.0,0.002819]
[1728018040671,0.44888703,61134.0,61133.0,0.002819]
[1728018040881,0.43088703,61134.0,61133.0,0.000819]
[1728018041087,0.44288703,61134.0,61133.0,0.001819]
[1728018041509,0.43088703,61134.0,61133.0,0.000819]
[1728018041935,0.44288703,61134.0,61133.0,0.001819]
[1728018042167,0.45688703,61134.0,61133.0,0.002819]
[1728018042564,0.44288703,61134.0,61133.0,0.001819]
[1728018043252,0.45688703,61134.0,61133.0,0.001819]
[1728018043463,0.48253673,61134.0,61133.0,0.001819]
[1728018047175,0.62969543,61134.0,61133.0,0.001819]
[1728018047401,0.60404573,61134.0,61133.0,0.001819]
[1728018048911,0.4785697,61134.0,61133.0,0.001819]
[1728018049132,0.4805697,61134.0,61133.0,0.001819]
[1728018049596,0.333411,61134.0,61133.0,0.001819]
[1728018050503,0.35906074,61134.0,61133.0,0.001819]
[1728018050952,0.333411,61134.0,61133.0,0.001819]
[1728018052320,0.62895408,61134.0,61133.0,0.001819]
[1728018052768,0.46332733,61134.0,61133.0,0.001819]
[1728018053619,0.62898276,61134.0,61133.0,0.001819]
[1728018054051,0.65463313,61134.0,61133.0,0.001819]
[1728018055174,0.5247168,61134.0,61133.0,0.001819]
[1728018055414,0.35906137,61134.0,61133.0,0.001819]
[1728018055630,0.5246947,61134.0,61133.0,0.001819]
[1728018056029,0.5246862,61134.0,61133.0,0.001819]
[1728018056549,0.31686137,61134.0,61133.0,0.001819]
[1728018056764,0.4824862,61134.0,61133.0,0.001819]
[1728018057471,0.45683583,61134.0,61133.0,0.001819]
[1728018058347,0.291211,61134.0,61133.0,0.001819]
[1728018060759,0.31686005,61134.0,61133.0,0.001819]
[1728018061467,0.21686005,61134.0,61133.0,0.176719]
[1728018061695,0.1257637,61134.0,61133.0,0.176719]
[1728018061911,0.15029015,61134.0,61133.0,0.34397694]
[1728018062238,0.027636,61134.0,61133.0,0.34397694]
[1728018062572,0.013636,61134.0,61133.0,0.34397694]
[1728018062808,0.007636,61134.0,61133.0,0.34397694]
[1728018063027,0.011636,61134.0,61133.0,0.34397694]
[1728018063691,0.001636,61134.0,61133.0,0.34297694]
[1728018064617,0.001636,61134.0,61133.0,0.34797694]
[1728018064849,0.02564319,61134.0,61133.0,0.67492794]
[1728018065552,0.02564319,61134.0,61133.0,0.67992794]
[1728018065783,0.02564319,61134.0,61133.0,0.66992794]
[1728018066013,0.02564319,61134.0,61133.0,0.67692794]
[1728018066242,0.02664319,61134.0,61133.0,0.68192794]
[1728018066710,0.02664319,61134.0,61133.0,0.67692794]
[1728018066968,0.02764319,61134.0,61133.0,0.68392794]
[1728018069544,0.002,61134.0,61133.0,0.68392794]
[1728018069778,0.02764333,61134.0,61133.0,0.68392794]
[1728018070722,0.002,61134.0,61133.0,0.68392794]
[1728018073869,0.02764258,61134.0,61133.0,0.68392794]
[1728018074315,0.02928058,61134.0,61133.0,0.68392794]
[1728018075523,0.02928058,61134.0,61133.0,0.70692794]
[1728018077327,0.02928058,61134.0,61133.0,0.68392794]
[1728018079586,0.02928058,61134.0,61133.0,0.80929]
[1728018080676,0.003638,61134.0,61133.0,0.83229]
[1728018081360,0.000274,61137.0,61136.0,0.163569]
[1728018081586,0.000274,61137.0,61136.0,0.46363106]
[1728018081810,0.000274,61137.0,61136.0,0.46725392]
[1728018082477,0.000274,61137.0,61136.0,0.49025392]
[1728018082731,0.000274,61137.0,61136.0,0.49825392]
[1728018083411,0.000274,61137.0,61136.0,0.49025392]
[1728018083761,0.000274,61137.0,61136.0,0.49325392]
[1728018083975,0.000274,61137.0,61136.0,0.49025392]
[1728018084190,0.000274,61137.0,61136.0,0.49425392]
[1728018085291,0.000274,61137.0,61136.0,0.49725392]
[1728018085735,0.000274,61137.0,61136.0,0.49425392]
[1728018086164,0.000274,61137.0,61136.0,0.49825392]
[1728018089424,0.000274,61137.0,61136.0,0.49025392]
[1728018089853,0.002274,61137.0,61136.0,0.50825392]
[1728018090059,0.001274,61137.0,61136.0,0.49925392]
[1728018090284,0.000274,61137.0,61136.0,0.49025392]
[1728018090509,0.001274,61137.0,61136.0,0.50125392]
[1728018090744,0.002274,61137.0,61136.0,0.51025392]
[1728018092194,0.002274,61137.0,61136.0,0.51225392]
[1728018092401,0.002274,61137.0,61136.0,0.51025392]
[1728018096244,0.02791203,61137.0,61136.0,0.51025392]
[1728018096473,0.02791203,61137.0,61136.0,0.51225392]
[1728018096703,0.00164,61141.0,61140.0,0.163559]
[1728018096929,0.00164,61141.0,61140.0,0.330959]
[1728018097153,0.00164,61141.0,61140.0,0.33456357]
[1728018098093,0.00264,61141.0,61140.0,0.34356357]
[1728018098780,0.00364,61141.0,61140.0,0.35256357]
[1728018099531,0.29255806,61141.0,61140.0,0.02160457]
[1728018099994,0.29255806,61141.0,61140.0,0.018]
[1728018100239,0.166196,61141.0,61140.0,0.009]
[1728018100463,0.166196,61141.0,61133.0,0.000819]
[1728018100464,0.163575,61134.0,61133.0,0.000819]
[1728018100714,0.163566,61138.0,61133.0,0.000819]
[1728018100946,0.165196,61141.0,61140.0,0.002]
[1728018101161,0.165196,61141.0,61133.0,0.000819]
[1728018101162,0.163562,61139.0,61134.0,0.00338016]
[1728018101383,0.163562,61139.0,61133.0,0.164394]
[1728018101630,0.163562,61139.0,61135.0,0.00337959]
[1728018101869,0.163562,61139.0,61134.0,0.00338016]
[1728018102119,0.163562,61139.0,61136.0,0.00337903]
[1728018102328,0.163564,61138.0,61135.0,0.00337959]
[1728018102549,0.163564,61138.0,61137.0,0.00337847]
[1728018102773,0.163564,61138.0,61136.0,0.00337903]
[1728018102995,0.163564,61138.0,61137.0,0.00337847]
[1728018103455,0.00164,61141.0,61136.0,0.0905]
[1728018103668,0.00164,61141.0,61138.0,0.163563]
[1728018103892,0.165197,61141.0,61137.0,0.00337847]
[1728018104116,0.165197,61141.0,61136.0,0.254068]
[1728018104117,0.165197,61141.0,61139.0,0.00339631]
[1728018104338,0.163559,61140.0,61138.0,0.00339396]
[1728018104560,0.163559,61140.0,61136.0,0.254068]
[1728018104775,0.163559,61140.0,61137.0,0.004]
[1728018105393,0.163559,61140.0,61136.0,0.254068]
[1728018105619,0.163559,61140.0,61138.0,0.002]
[1728018106034,0.02564234,61140.0,61137.0,0.163565]
[1728018106530,0.02564234,61140.0,61137.0,0.165565]
[1728018106966,0.02564234,61140.0,61139.0,0.001]
[1728018107201,0.02564234,61140.0,61137.0,0.165565]
[1728018107421,0.02564234,61140.0,61137.0,0.167565]
[1728018107873,0.02564234,61140.0,61138.0,0.00339359]
[1728018108310,0.165196,61141.0,61139.0,0.002]
[1728018108735,0.00164,61141.0,61140.0,0.00339246]
[1728018109431,0.00164,61141.0,61138.0,0.165563]
[1728018109672,0.00164,61141.0,61140.0,0.00339246]
[1728018109921,0.001636,61140.0,61139.0,0.00339303]
[1728018110134,0.001636,61140.0,61139.0,0.163561]
[1728018111285,0.001636,61140.0,61139.0,0.165561]
[1728018111494,0.001636,61140.0,61139.0,0.16549732]
[1728018111909,0.001636,61140.0,61139.0,0.24669732]
[1728018113054,0.001636,61140.0,61139.0,0.53302567]
[1728018113270,0.02727722,61140.0,61139.0,0.53302567]
[1728018113810,0.02727722,61140.0,61139.0,0.53102567]
[1728018114041,0.02727722,61140.0,61139.0,0.52902567]
[1728018114237,0.02727722,61140.0,61139.0,0.53102567]
[1728018114866,0.02827722,61140.0,61139.0,0.53602567]
[1728018115026,0.02827722,61140.0,61139.0,0.52902567]
[1728018115240,0.02927722,61140.0,61139.0,0.53602567]
[1728018115448,0.02927722,61140.0,61139.0,0.34509732]
[1728018115641,0.02827722,61140.0,61139.0,0.33809732]
[1728018116215,0.02927722,61140.0,61139.0,0.34509732]
[1728018116415,0.03027722,61140.0,61139.0,0.35209732]
[1728018116888,0.02927722,61140.0,61139.0,0.34509732]
[1728018117113,0.03027722,61140.0,61139.0,0.35209732]
[1728018117324,0.02927722,61140.0,61139.0,0.34509732]
[1728018117927,0.03027722,61140.0,61139.0,0.35209732]
[1728018118147,0.004636,61140.0,61139.0,0.35209732]
[1728018118358,0.003636,61140.0,61139.0,0.34509732]
[1728018118820,0.004636,61140.0,61139.0,0.35209732]
[1728018119264,0.003636,61140.0,61139.0,0.34509732]
[1728018120158,0.001636,61140.0,61139.0,0.33809732]
[1728018120375,0.002636,61140.0,61139.0,0.34709732]
[1728018121034,0.003636,61140.0,61139.0,0.35609732]
[1728018122703,0.02927616,61140.0,61139.0,0.35949579]
[1728018125757,0.02927616,61140.0,61139.0,0.48476989]
[1728018127433,0.003636,61140.0,61139.0,0.48476989]
[1728018128251,0.003636,61140.0,61139.0,0.50776989]
[1728018133844,0.003636,61140.0,61139.0,0.50858889]
[1728018134079,0.003636,61140.0,61139.0,0.38331479]
[1728018136610,0.02123888,61140.0,61139.0,0.38331479]
[1728018136824,0.03884278,61140.0,61139.0,0.38331479]
[1728018141504,0.0212399,61140.0,61139.0,0.38331479]
[1728018143001,0.02125479,61140.0,61139.0,0.38331479]
[1728018145154,0.04689427,61140.0,61139.0,0.38331479]
[1728018146573,0.04687336,61140.0,61139.0,0.38331479]
[1728018147255,0.02123388,61140.0,61139.0,0.38331479]
[1728018150373,0.0468736,61140.0,61139.0,0.38331479]
[1728018151461,0.02123388,61140.0,61139.0,0.38331479]
[1728018153480,0.02117585,61140.0,61139.0,0.38331479]
[1728018153923,0.03871577,61140.0,61139.0,0.38331479]
[1728018154789,0.06435537,61140.0,61139.0,0.38331479]
[1728018157045,0.038733,61140.0,61139.0,0.38331479]
[1728018161641,0.02119315,61140.0,61139.0,0.38331479]
[1728018168049,0.003636,61140.0,61139.0,0.38331479]
[1728018181604,0.003636,61140.0,61139.0,0.38531479]
[1728018182258,0.003636,61140.0,61139.0,0.51058889]
[1728018183644,0.003636,61140.0,61139.0,0.50858889]
[1728018183852,0.003636,61140.0,61139.0,0.51058889]
[1728018187403,0.003636,61140.0,61139.0,0.6737756]
[1728018188254,0.002636,61140.0,61139.0,0.6647756]
[1728018188473,0.002636,61140.0,61139.0,0.37431479]
[1728018188953,0.002636,61140.0,61139.0,0.37331479]
[1728018189351,0.003636,61140.0,61139.0,0.38731479]
[1728018189563,0.001636,61140.0,61139.0,0.36531479]
[1728018189834,0.001636,61140.0,61139.0,0.37931479]
[1728018190037,0.002636,61140.0,61139.0,0.39331479]
[1728018192034,0.002636,61140.0,61139.0,0.39531479]
[1728018192430,0.002636,61140.0,61139.0,0.39331479]
[1728018192656,0.002636,61140.0,61139.0,0.39531479]
[1728018192873,0.002636,61140.0,61139.0,0.38131479]
[1728018193092,0.02727285,61140.0,61139.0,0.36731479]
[1728018193314,0.00164,61141.0,61140.0,0.362459]
[1728018193540,0.00164,61141.0,61140.0,0.49090213]
[1728018195439,0.00164,61141.0,61140.0,0.50290213]
[1728018195851,0.00164,61141.0,61140.0,0.50490213]
[1728018196505,0.00164,61141.0,61140.0,0.51890213]
[1728018199720,0.01917728,61141.0,61140.0,0.51890213]
[1728018199917,0.001638,61153.0,61142.0,0.002]
[1728018200154,0.001638,61153.0,61152.0,0.163526]
[1728018200358,0.001638,61153.0,61152.0,0.16712921]
[1728018202012,0.001638,61153.0,61152.0,0.17012921]
[1728018202228,0.02727375,61153.0,61152.0,0.17012921]
[1728018202600,0.02727375,61153.0,61152.0,0.17312921]
[1728018206426,0.06917375,61153.0,61152.0,0.17312921]
[1728018206647,0.02727375,61153.0,61152.0,0.17312921]
[1728018209105,0.001638,61153.0,61152.0,0.17312921]
[1728018212071,0.01912756,61153.0,61152.0,0.17312921]
[1728018212523,0.01912756,61153.0,61152.0,0.26872921]
[1728018213855,0.001638,61153.0,61152.0,0.26872921]
[1728018214097,0.01911066,61153.0,61152.0,0.26872921]
[1728018216233,0.001638,61153.0,61152.0,0.26872921]
[1728018216442,0.01910248,61153.0,61152.0,0.26872921]
[1728018219539,0.01910248,61153.0,61152.0,0.34582921]
[1728018224055,0.001638,61153.0,61152.0,0.34582921]
[1728018224275,0.01911802,61153.0,61152.0,0.34582921]
[1728018225242,0.04475398,61153.0,61152.0,0.34582921]
[1728018229811,0.01911802,61153.0,61152.0,0.34582921]
[1728018234141,0.001638,61153.0,61152.0,0.34582921]
[1728018234356,0.01911543,61153.0,61152.0,0.34582921]
[1728018234585,0.01911559,61153.0,61152.0,0.34582921]
[1728018237493,0.001638,61153.0,61152.0,0.34582921]
[1728018237707,0.01913343,61153.0,61152.0,0.34582921]
[1728018240831,0.01911854,61153.0,61152.0,0.34582921]
[1728018241798,0.0447545,61153.0,61152.0,0.34582921]
[1728018243189,0.01911854,61153.0,61152.0,0.34582921]
[1728018246630,0.01915455,61153.0,61152.0,0.34582921]
[1728018247500,0.04479073,61153.0,61152.0,0.34582921]
[1728018249864,0.02727418,61153.0,61152.0,0.34582921]
[1728018250084,0.044844,61153.0,61152.0,0.34582921]
[1728018250771,0.01920782,61153.0,61152.0,0.34582921]
[1728018253270,0.001638,61153.0,61152.0,0.34582921]
[1728018253494,0.01922696,61153.0,61152.0,0.34582921]
[1728018253733,0.01922705,61153.0,61152.0,0.34582921]
[1728018253957,0.0448631,61153.0,61152.0,0.34582921]
[1728018255267,0.01922705,61153.0,61152.0,0.34582921]
[1728018256868,0.01922827,61153.0,61152.0,0.34582921]
[1728018260007,0.001638,61153.0,61152.0,0.34582921]
[1728018260224,0.01922086,61153.0,61152.0,0.34582921]
[1728018263439,0.01923076,61153.0,61152.0,0.34582921]
[1728018263891,0.001638,61153.0,61152.0,0.34582921]
[1728018264113,0.0192308,61153.0,61152.0,0.34582921]
[1728018266658,0.04486648,61153.0,61152.0,0.34582921]
[1728018271423,0.0192308,61153.0,61152.0,0.34582921]
[1728018274035,0.01924277,61153.0,61152.0,0.34582921]
[1728018276871,0.001638,61153.0,61152.0,0.34582921]
[1728018277101,0.01922991,61153.0,61152.0,0.34582921]
[1728018287045,0.01924582,61153.0,61152.0,0.34582921]
[1728018287503,0.04488177,61153.0,61152.0,0.34582921]
[1728018292055,0.01924582,61153.0,61152.0,0.34582921]
[1728018292262,0.04752501,61153.0,61152.0,0.34582921]
[1728018294180,0.001638,61153.0,61152.0,0.34582921]
[1728018294392,0.04760741,61153.0,61152.0,0.34582921]
[1728018299745,0.07324378,61153.0,61152.0,0.34582921]
[1728018300351,0.02727437,61153.0,61152.0,0.34582921]
[1728018300570,0.07328977,61153.0,61152.0,0.34582921]
[1728018301026,0.0476534,61153.0,61152.0,0.34582921]
[1728018302686,0.04761042,61153.0,61152.0,0.34582921]
[1728018303165,0.04761091,61153.0,61152.0,0.34582921]
[1728018304404,0.01931989,61153.0,61152.0,0.34582921]
[1728018306297,0.01926914,61153.0,61152.0,0.34582921]
[1728018308512,0.04490537,61153.0,61152.0,0.34582921]
[1728018312819,0.01926914,61153.0,61152.0,0.34582921]
[1728018313248,0.001638,61153.0,61152.0,0.34582921]
[1728018313483,0.01917245,61153.0,61152.0,0.34582921]
[1728018314119,0.01890325,61153.0,61152.0,0.34582921]
[1728018314578,0.0013688,61153.0,61152.0,0.34582921]
[1728018314787,0.01891737,61153.0,61152.0,0.34582921]
[1728018319556,0.0013688,61153.0,61152.0,0.34582921]
[1728018319778,0.01886656,61153.0,61152.0,0.34582921]
[1728018320691,0.04450253,61153.0,61152.0,0.34582921]
[1728018325104,0.04450253,61153.0,61152.0,0.34664821]
[1728018325965,0.01886656,61153.0,61152.0,0.34664821]
[1728018326198,0.01888187,61153.0,61152.0,0.34664821]
[1728018331877,0.01888187,61153.0,61152.0,0.34850628]
[1728018333283,0.01888804,61153.0,61152.0,0.34850628]
[1728018333525,0.04452415,61153.0,61152.0,0.34850628]
[1728018333768,0.04452454,61153.0,61152.0,0.34850628]
[1728018334277,0.04425534,61153.0,61152.0,0.34850628]
[1728018334770,0.01861923,61153.0,61152.0,0.34850628]
[1728018336688,0.01861704,61153.0,61152.0,0.34850628]
[1728018342138,0.04425329,61153.0,61152.0,0.34850628]
[1728018343760,0.04430666,61153.0,61152.0,0.34850628]
[1728018346631,0.04429704,61153.0,61152.0,0.34850628]
[1728018346848,0.01866079,61153.0,61152.0,0.34850628]
[1728018349906,0.2898977,61153.0,61152.0,0.01228028]
[1728018350128,0.38799151,61153.0,61152.0,0.01228028]
[1728018350393,0.38799151,61153.0,61152.0,0.006819]
[1728018351322,0.38799151,61153.0,61152.0,0.003819]
[1728018351785,0.39199151,61153.0,61152.0,0.003819]
[1728018352020,0.38799151,61153.0,61152.0,0.003819]
[1728018352260,0.38799151,61153.0,61152.0,0.000819]
[1728018352492,0.39599151,61153.0,61152.0,0.000819]
[1728018352722,0.51869028,61153.0,61152.0,0.000819]
[1728018353190,0.50113365,61153.0,61152.0,0.000819]
[1728018353433,0.5187029,61153.0,61152.0,0.000819]
[1728018353892,0.49306572,61153.0,61152.0,0.000819]
[1728018354118,0.49279652,61153.0,61152.0,0.000819]
[1728018354351,0.44369309,61153.0,61152.0,0.000819]
[1728018355713,0.37009775,61153.0,61152.0,0.000819]
[1728018356488,0.37011723,61153.0,61152.0,0.000819]
[1728018356939,0.46933527,61153.0,61152.0,0.000819]
[1728018357853,0.48086115,61153.0,61152.0,0.000819]
[1728018359745,0.45518413,61153.0,61152.0,0.000819]
[1728018359974,0.45516536,61153.0,61152.0,0.000819]
[1728018360448,0.35709846,61153.0,61152.0,0.000819]
[1728018360694,0.26347568,61153.0,61152.0,0.000819]
[1728018360945,0.2389592,61153.0,61152.0,0.000819]
[1728018361172,0.18992436,61153.0,61152.0,0.000819]
[1728018361401,0.26347568,61153.0,61152.0,0.000819]
[1728018362111,0.24590572,61153.0,61152.0,0.000819]
[1728018362346,0.18982997,61153.0,61152.0,0.000819]
[1728018362589,0.26449726,61153.0,61152.0,0.000819]
[1728018363029,0.05194578,61153.0,61152.0,0.000819]
[1728018363261,0.05194578,61153.0,61152.0,0.16984166]
[1728018363494,0.05194578,61153.0,61152.0,0.24484166]
[1728018364914,0.04694578,61153.0,61152.0,0.24484166]
[1728018365134,0.04894578,61153.0,61152.0,0.24484166]
[1728018365363,0.04891013,61153.0,61152.0,0.24484166]
[1728018365582,0.04691013,61153.0,61152.0,0.24484166]
[1728018365806,0.04391013,61153.0,61152.0,0.24484166]
[1728018366025,0.04991013,61153.0,61152.0,0.24484166]
[1728018367177,0.02427032,61153.0,61152.0,0.24484166]
[1728018370658,0.04990834,61153.0,61152.0,0.24484166]
[1728018371564,0.04990834,61153.0,61152.0,0.34094166]
[1728018372036,0.03246842,61153.0,61152.0,0.34094166]
[1728018372263,0.04994241,61153.0,61152.0,0.34094166]
[1728018374099,0.04967321,61153.0,61152.0,0.34094166]
[1728018375292,0.03219922,61153.0,61152.0,0.34094166]
[1728018375523,0.04969175,61153.0,61152.0,0.34094166]
[1728018378542,0.03219922,61153.0,61152.0,0.34094166]
[1728018378775,0.02406602,61153.0,61152.0,0.34094166]
[1728018381412,0.02106602,61153.0,61152.0,0.34094166]
[1728018382150,0.02206602,61153.0,61152.0,0.34094166]
[1728018382397,0.0015612,61153.0,61152.0,0.34094166]
[1728018382621,0.0180909,61153.0,61152.0,0.34094166]
[1728018382863,0.0180909,61153.0,61152.0,0.34294166]
[1728018383557,0.0200909,61153.0,61152.0,0.34294166]
[1728018384009,0.0200909,61153.0,61152.0,0.34094166]
[1728018384273,0.0180909,61153.0,61152.0,0.34094166]
[1728018384489,0.0180909,61153.0,61152.0,0.34694166]
[1728018385159,0.0180909,61153.0,61152.0,0.34094166]
[1728018385380,0.0180909,61153.0,61152.0,0.35294166]
[1728018386566,0.04372648,61153.0,61152.0,0.34994166]
[1728018387016,0.04372648,61153.0,61152.0,0.35794166]
[1728018388360,0.0180909,61153.0,61152.0,0.35794166]
[1728018391590,0.04372578,61153.0,61152.0,0.35794166]
[1728018391827,0.04376219,61153.0,61152.0,0.35794166]
[1728018392327,0.0005612,61153.0,61152.0,0.35794166]
[1728018392542,0.01812487,61153.0,61152.0,0.35794166]
[1728018395106,0.04376528,61153.0,61152.0,0.35794166]
[1728018396018,0.01813042,61153.0,61152.0,0.35794166]
[1728018399272,0.04376525,61153.0,61152.0,0.35794166]
[1728018403870,0.04376525,61153.0,61152.0,0.38094166]
[1728018407393,0.01813042,61153.0,61152.0,0.38094166]
[1728018408315,0.0005612,61153.0,61152.0,0.38094166]
[1728018408561,0.01804677,61153.0,61152.0,0.38094166]
[1728018414855,0.0436814,61153.0,61152.0,0.38094166]
[1728018415079,0.04371387,61153.0,61152.0,0.38094166]
[1728018421049,0.02619583,61153.0,61152.0,0.38094166]
[1728018421292,0.04370154,61153.0,61152.0,0.38094166]
[1728018421795,0.04370217,61153.0,61152.0,0.38094166]
[1728018423910,0.02619583,61153.0,61152.0,0.38094166]
[1728018424142,0.0436959,61153.0,61152.0,0.38094166]
[1728018424717,0.0436959,61153.0,61152.0,0.3850808]
[1728018425387,0.01806127,61153.0,61152.0,0.3770808]
[1728018425935,0.01806127,61153.0,61152.0,0.3830808]
[1728018426599,0.01806127,61153.0,61152.0,0.3770808]
[1728018426845,0.01906127,61153.0,61152.0,0.3860808]
[1728018427322,0.01902918,61153.0,61152.0,0.3860808]
[1728018430772,0.01904588,61153.0,61152.0,0.3860808]
[1728018431236,0.01904585,61153.0,61152.0,0.3860808]
[1728018433947,0.01904585,61153.0,61152.0,0.35894166]
[1728018434164,0.0446805,61153.0,61152.0,0.35894166]
[1728018434601,0.0446805,61153.0,61152.0,0.34994166]
[1728018434803,0.0436805,61153.0,61152.0,0.34994166]
[1728018435051,0.0436805,61153.0,61152.0,0.35494166]
[1728018435523,0.0436805,61153.0,61152.0,0.17884166]
[1728018435791,0.0446805,61153.0,61152.0,0.18684166]
[1728018436241,0.0436805,61153.0,61152.0,0.17884166]
[1728018436463,0.01804585,61153.0,61152.0,0.16984166]
[1728018436697,0.01804585,61153.0,61152.0,0.27814166]
[1728018437133,0.01804585,61153.0,61152.0,0.27014166]
[1728018437351,0.01811283,61153.0,61152.0,0.35144166]
[1728018437786,0.01811283,61153.0,61152.0,0.34744166]
[1728018438016,0.01811283,61153.0,61152.0,0.34244166]
[1728018438295,0.01911283,61153.0,61152.0,0.35044166]
[1728018439223,0.01911283,61153.0,61152.0,0.35844166]
[1728018439648,0.04474775,61153.0,61152.0,0.35844166]
[1728018439900,0.01911283,61153.0,61152.0,0.35844166]
[1728018440591,0.0015612,61153.0,61152.0,0.35844166]
[1728018440839,0.01911637,61153.0,61152.0,0.35844166]
[1728018450762,0.04475197,61153.0,61152.0,0.35844166]
[1728018451978,0.01911637,61153.0,61152.0,0.35844166]
[1728018454975,0.04475196,61153.0,61152.0,0.35844166]
[1728018456547,0.01911637,61153.0,61152.0,0.35844166]
[1728018460180,0.0015612,61153.0,61152.0,0.35844166]
[1728018460418,0.01907825,61153.0,61152.0,0.35844166]
[1728018463466,0.0015612,61153.0,61152.0,0.35844166]
[1728018463677,0.01908967,61153.0,61152.0,0.35844166]
[1728018466786,0.0015612,61153.0,61152.0,0.35844166]
[1728018466972,0.0191107,61153.0,61152.0,0.35844166]
[1728018471717,0.04474568,61153.0,61152.0,0.35844166]
[1728018478201,0.0191107,61153.0,61152.0,0.35844166]
[1728018479302,0.0191107,61153.0,61152.0,0.50671576]
[1728018480386,0.0191107,61153.0,61152.0,0.58040686]
[1728018480601,0.0015612,61153.0,61152.0,0.58040686]
[1728018480813,0.01895144,61153.0,61152.0,0.58040686]
[1728018481055,0.0015612,61153.0,61152.0,0.58040686]
[1728018481263,0.01895147,61153.0,61152.0,0.58040686]
[1728018481471,0.01895147,61153.0,61152.0,0.58041088]
[1728018482786,0.04458503,61153.0,61152.0,0.58041088]
[1728018483024,0.04457356,61153.0,61152.0,0.58041088]
[1728018483430,0.04457356,61153.0,61152.0,0.50671576]
[1728018485366,0.04457356,61153.0,61152.0,0.5558392]
[1728018485800,0.04457356,61153.0,61152.0,0.50671576]
[1728018486756,0.01894,61153.0,61152.0,0.50671576]
[1728018487341,0.001636,61162.0,61161.0,0.163502]
[1728018487525,0.001636,61162.0,61161.0,0.4863761]
[1728018487673,0.001636,61162.0,61161.0,0.5863761]
[1728018487874,0.001636,61162.0,61161.0,0.59215196]
[1728018488374,0.001636,61162.0,61161.0,0.71475293]
[1728018488614,0.001636,61162.0,61161.0,0.71975293]
[1728018489020,0.001636,61162.0,61161.0,0.72175293]
[1728018489236,0.001636,61162.0,61161.0,0.59915196]
[1728018489668,0.001636,61162.0,61161.0,0.59715196]
[1728018489893,0.001636,61162.0,61161.0,0.62515196]
[1728018490096,0.001636,61162.0,61161.0,0.72318214]
[1728018490298,0.001636,61162.0,61161.0,0.62515196]
[1728018490967,0.001636,61162.0,61161.0,0.62015196]
[1728018491213,0.001636,61162.0,61161.0,0.62515196]
[1728018491434,0.001636,61162.0,61161.0,0.69862269]
[1728018491890,0.001636,61162.0,61161.0,0.70295525]
[1728018492114,0.001636,61162.0,61161.0,0.69795525]
[1728018492339,0.001636,61162.0,61161.0,0.62448452]
[1728018493019,0.001636,61162.0,61161.0,0.62948452]
[1728018493449,0.02726286,61162.0,61161.0,0.67844127]
[1728018493661,0.00164,61165.0,61164.0,0.191494]
[1728018493875,0.00164,61165.0,61164.0,0.5913681]
[1728018494007,0.00164,61165.0,61164.0,0.59724299]
[1728018494644,0.36879,61183.0,61164.0,0.59724299]
[1728018494645,0.24520421,61179.0,61178.0,0.163457]
[1728018495116,0.339867,61187.0,61178.0,0.00586671]
[1728018495330,0.339867,61187.0,61178.0,0.33277871]
[1728018495543,0.163444,61183.0,61178.0,0.490367]
[1728018495747,0.326879,61185.0,61179.0,0.00586613]
[1728018495955,0.163445,61183.0,61179.0,0.163453]
[1728018496162,0.163445,61183.0,61180.0,0.00586554]
[1728018496572,0.02562499,61184.0,61181.0,0.163449]
[1728018496796,0.163444,61183.0,61182.0,0.00586437]
[1728018497028,0.163444,61183.0,61179.0,0.163453]
[1728018497226,0.1252741,61186.0,61179.0,0.163453]
[1728018497227,0.163441,61185.0,61182.0,0.00586437]
[1728018497491,0.163441,61185.0,61178.0,0.326914]
[1728018497696,0.163441,61185.0,61183.0,0.00586379]
[1728018497908,0.163441,61184.0,61180.0,0.163451]
[1728018498562,0.163436,61186.0,61181.0,0.163447]
[1728018498781,0.163439,61185.0,61181.0,0.163447]
[1728018498988,0.1382741,61191.0,61180.0,0.1746]
[1728018499217,0.1382741,61191.0,61183.0,0.163443]
[1728018499218,0.163435,61187.0,61183.0,0.163443]
[1728018499422,0.0172725,61186.0,61183.0,0.163443]
[1728018499634,0.0172725,61185.0,61180.0,0.1746]
[1728018499841,0.0172725,61184.0,61180.0,0.1746]
[1728018500045,0.0172725,61183.0,61181.0,0.163449]
[1728018500253,0.1252741,61188.0,61182.0,0.163446]
[1728018500254,0.163434,61187.0,61182.0,0.163446]
[1728018500470,0.180702,61186.0,61182.0,0.163446]
[1728018500677,0.02562411,61183.0,61182.0,0.163446]
[1728018501137,0.04290261,61183.0,61182.0,0.163446]
[1728018504352,0.04290261,61183.0,61182.0,0.258846]
[1728018505549,0.04290261,61183.0,61182.0,0.338046]
[1728018506009,0.04290261,61183.0,61182.0,0.4633201]
[1728018506260,0.04290261,61183.0,61182.0,0.4863201]
[1728018506261,0.02562411,61183.0,61182.0,0.4863201]
[1728018506516,0.24520421,61194.0,61193.0,0.163417]
[1728018506769,0.26246917,61194.0,61193.0,0.163417]
[1728018507006,0.18067996,61194.0,61192.0,0.0792]
[1728018507216,0.01726496,61193.0,61192.0,0.0792]
[1728018507687,0.01726382,61193.0,61192.0,0.0792]